[Event "Titled Tuesday Blitz June 14 Early 2022"]
[White "Tarigan, Gilbert Elroy"]
[Black "Rodrigue-Lemieux, Shawn"]
[WhiteFideId "7108133"]
[BlackFideId "2620049"]
[WhiteElo "1908"]
[BlackElo "1763"]
[Result "0-1"]
[Round "05"]
[TimeControl "180+1"]
[Date "2022.06.14"]
[WhiteClock "0:00:02"]
[BlackClock "0:00:04"]

1. e4 {[%clk 0:02:55]}  c6 {[%clk 0:02:59]} 2. d4 {[%clk 0:02:45]}  d5 {[%clk 0:03:00]} 3. Nc3 {[%clk 0:02:45]}  dxe4 {[%clk 0:03:00]} 4. Nxe4 {[%clk 0:02:46]}  Nf6 {[%clk 0:03:00]} 5. Qd3 {[%clk 0:02:42]}  Nxe4 {[%clk 0:02:57]} 6. Qxe4 {[%clk 0:02:43]}  Nd7 {[%clk 0:02:58]} 7. Nf3 {[%clk 0:02:38]}  Nf6 {[%clk 0:02:58]} 8. Qf4 {[%clk 0:02:32]}  Nd5 {[%clk 0:02:56]} 9. Qe4 {[%clk 0:02:24]}  Nf6 {[%clk 0:02:54]} 10. Qf4 {[%clk 0:02:24]}  g6 {[%clk 0:02:53]} 11. Bc4 {[%clk 0:02:15]}  Bg7 {[%clk 0:02:51]} 12. O-O {[%clk 0:02:13]}  O-O {[%clk 0:02:51]} 13. Qh4 {[%clk 0:02:13]}  Qa5 {[%clk 0:02:46]} 14. Bh6 {[%clk 0:02:08]}  Qh5 {[%clk 0:02:43]} 15. Qxh5 {[%clk 0:02:07]}  Nxh5 {[%clk 0:02:44]} 16. Bxg7 {[%clk 0:02:08]}  Nxg7 {[%clk 0:02:43]} 17. Rfe1 {[%clk 0:02:00]}  Be6 {[%clk 0:02:44]} 18. Bxe6 {[%clk 0:01:56]}  Nxe6 {[%clk 0:02:44]} 19. c3 {[%clk 0:01:56]}  Rad8 {[%clk 0:02:43]} 20. g3 {[%clk 0:01:55]}  Kg7 {[%clk 0:02:43]} 21. Re5 {[%clk 0:01:55]}  Rd7 {[%clk 0:02:38]} 22. Rae1 {[%clk 0:01:55]}  Re8 {[%clk 0:02:38]} 23. h4 {[%clk 0:01:41]}  Nc7 {[%clk 0:02:35]} 24. R5e2 {[%clk 0:01:37]}  f6 {[%clk 0:02:33]} 25. Nd2 {[%clk 0:01:32]}  Kf7 {[%clk 0:02:23]} 26. Ne4 {[%clk 0:01:31]}  b6 {[%clk 0:02:18]} 27. Kg2 {[%clk 0:01:31]}  Nd5 {[%clk 0:02:17]} 28. Nd2 {[%clk 0:01:28]}  Red8 {[%clk 0:02:13]} 29. Nb3 {[%clk 0:01:13]}  a5 {[%clk 0:02:13]} 30. Re6 {[%clk 0:01:09]}  Rd6 {[%clk 0:02:10]} 31. R6e2 {[%clk 0:01:07]}  a4 {[%clk 0:02:08]} 32. Nd2 {[%clk 0:01:07]}  R6d7 {[%clk 0:02:05]} 33. a3 {[%clk 0:01:04]}  Ra8 {[%clk 0:01:58]} 34. Nc4 {[%clk 0:00:56]}  Raa7 {[%clk 0:01:56]} 35. Re6 {[%clk 0:00:53]}  Rac7 {[%clk 0:01:07]} 36. Nd2 {[%clk 0:00:40]}  Rd6 {[%clk 0:00:59]} 37. R6e2 {[%clk 0:00:37]}  b5 {[%clk 0:00:32]} 38. Ne4 {[%clk 0:00:36]}  Rd8 {[%clk 0:00:32]} 39. Nc5 {[%clk 0:00:36]}  Ra7 {[%clk 0:00:30]} 40. Ne6 {[%clk 0:00:34]}  Rc8 {[%clk 0:00:30]} 41. Kf3 {[%clk 0:00:30]}  Nb6 {[%clk 0:00:29]} 42. Nc5 {[%clk 0:00:26]}  Nc4 {[%clk 0:00:28]} 43. Ne6 {[%clk 0:00:24]}  Rd7 {[%clk 0:00:27]} 44. Kg2 {[%clk 0:00:20]}  Ra8 {[%clk 0:00:23]} 45. Nc5 {[%clk 0:00:19]}  Rc7 {[%clk 0:00:22]} 46. Ne6 {[%clk 0:00:19]}  Rb7 {[%clk 0:00:22]} 47. Nc5 {[%clk 0:00:19]}  Rba7 {[%clk 0:00:23]} 48. Ne6 {[%clk 0:00:19]}  Rc8 {[%clk 0:00:21]} 49. Kh2 {[%clk 0:00:18]}  Nd6 {[%clk 0:00:18]} 50. Kg2 {[%clk 0:00:15]}  Nf5 {[%clk 0:00:18]} 51. Nc5 {[%clk 0:00:15]}  Rd8 {[%clk 0:00:17]} 52. Re6 {[%clk 0:00:14]}  Rc7 {[%clk 0:00:14]} 53. Na6 {[%clk 0:00:13]}  Rcc8 {[%clk 0:00:14]} 54. g4 {[%clk 0:00:08]}  Nxh4+ {[%clk 0:00:14]} 55. Kg3 {[%clk 0:00:09]}  g5 {[%clk 0:00:09]} 56. Rxe7+ {[%clk 0:00:09]}  Kg8 {[%clk 0:00:09]} 57. Nc5 {[%clk 0:00:07]}  Ng6 {[%clk 0:00:06]} 58. Ra7 {[%clk 0:00:05]}  Re8 {[%clk 0:00:06]} 59. Re4 {[%clk 0:00:04]}  Nf4 {[%clk 0:00:05]} 60. Ree7 {[%clk 0:00:03]}  Rxe7 {[%clk 0:00:03]} 61. Rxe7 {[%clk 0:00:04]}  Rd8 {[%clk 0:00:02]} 62. Ne6 {[%clk 0:00:04]}  Nxe6 {[%clk 0:00:02]} 63. Rxe6 {[%clk 0:00:05]}  Kf7 {[%clk 0:00:02]} 64. Rxc6 {[%clk 0:00:05]}  Re8 {[%clk 0:00:03]} 65. Rc7+ {[%clk 0:00:05]}  Kg6 {[%clk 0:00:03]} 66. Rb7 {[%clk 0:00:06]}  h5 {[%clk 0:00:02]} 67. gxh5+ {[%clk 0:00:06]}  Kxh5 {[%clk 0:00:03]} 68. Rxb5 {[%clk 0:00:06]}  Re1 {[%clk 0:00:03]} 69. Rb4 {[%clk 0:00:06]}  Rg1+ {[%clk 0:00:02]} 70. Kh2 {[%clk 0:00:06]}  Rb1 {[%clk 0:00:02]} 71. d5 {[%clk 0:00:06]}  Kg6 {[%clk 0:00:02]} 72. Rxa4 {[%clk 0:00:05]}  Rxb2 {[%clk 0:00:02]} 73. Kg2 {[%clk 0:00:04]}  Kf5 {[%clk 0:00:03]} 74. Ra6 {[%clk 0:00:03]}  Ke5 {[%clk 0:00:03]} 75. c4 {[%clk 0:00:03]}  Rc2 {[%clk 0:00:03]} 76. Re6+ {[%clk 0:00:04]}  Kf5 {[%clk 0:00:03]} 77. Rc6 {[%clk 0:00:04]}  g4 {[%clk 0:00:03]} 78. d6 {[%clk 0:00:04]}  Ke6 {[%clk 0:00:03]} 79. c5 {[%clk 0:00:05]}  f5 {[%clk 0:00:03]} 80. Rc7 {[%clk 0:00:05]}  f4 {[%clk 0:00:03]} 81. d7 {[%clk 0:00:06]}  Ke7 {[%clk 0:00:02]} 82. c6 {[%clk 0:00:06]}  g3 {[%clk 0:00:02]} 83. Rc8 {[%clk 0:00:06]}  Rxf2+ {[%clk 0:00:02]} 84. Kh3 {[%clk 0:00:06]}  Rh2+ {[%clk 0:00:02]} 85. Kg4 {[%clk 0:00:06]}  Rd2 {[%clk 0:00:03]} 86. Re8+ {[%clk 0:00:05]}  Kf7 {[%clk 0:00:03]} 87. Kh3 {[%clk 0:00:04]}  Rh2+ {[%clk 0:00:02]} 88. Kg4 {[%clk 0:00:05]}  g2 {[%clk 0:00:03]} 89. Kf5 {[%clk 0:00:04]}  g1=Q {[%clk 0:00:02]} 90. Rf8+ {[%clk 0:00:04]}  Kxf8 {[%clk 0:00:02]} 91. d8=Q+ {[%clk 0:00:04]}  Kg7 {[%clk 0:00:03]} 92. Qf6+ {[%clk 0:00:04]}  Kh7 {[%clk 0:00:03]} 93. Qf7+ {[%clk 0:00:04]}  Qg7 {[%clk 0:00:03]} 94. Qxg7+ {[%clk 0:00:01]}  Kxg7 {[%clk 0:00:04]} 95. Kxf4 {[%clk 0:00:02]}  Rc2 {[%clk 0:00:04]} 0-1


[Site "https://www.chess.com"]

[Event "Titled Tuesday Blitz June 14 Early 2022"]
[White "Todorovic, Bojan"]
[Black "Priasmoro, Novendra"]
[WhiteFideId "917087"]
[BlackFideId "7105029"]
[WhiteElo "2266"]
[BlackElo "2309"]
[Result "0-1"]
[Round "05"]
[TimeControl "180+1"]
[Date "2022.06.14"]
[WhiteClock "0:00:03"]
[BlackClock "0:01:11"]

1. d4 {[%clk 0:02:59]}  Nf6 {[%clk 0:02:59]} 2. c4 {[%clk 0:02:58]}  g6 {[%clk 0:02:59]} 3. Nc3 {[%clk 0:02:58]}  Bg7 {[%clk 0:03:00]} 4. e4 {[%clk 0:02:57]}  d6 {[%clk 0:03:01]} 5. Nf3 {[%clk 0:02:57]}  O-O {[%clk 0:03:02]} 6. Be2 {[%clk 0:02:57]}  Na6 {[%clk 0:03:02]} 7. O-O {[%clk 0:02:57]}  e5 {[%clk 0:03:01]} 8. Be3 {[%clk 0:02:52]}  c6 {[%clk 0:03:01]} 9. d5 {[%clk 0:02:50]}  Ng4 {[%clk 0:02:59]} 10. Bg5 {[%clk 0:02:50]}  f6 {[%clk 0:02:58]} 11. Bc1 {[%clk 0:02:50]}  c5 {[%clk 0:02:59]} 12. Ne1 {[%clk 0:02:45]}  Nh6 {[%clk 0:02:57]} 13. Nd3 {[%clk 0:02:44]}  f5 {[%clk 0:02:57]} 14. f4 {[%clk 0:02:44]}  Nf7 {[%clk 0:02:50]} 15. exf5 {[%clk 0:02:35]}  Bxf5 {[%clk 0:02:49]} 16. g4 {[%clk 0:02:32]}  Bd7 {[%clk 0:02:47]} 17. f5 {[%clk 0:02:28]}  gxf5 {[%clk 0:02:44]} 18. gxf5 {[%clk 0:02:28]}  Kh8 {[%clk 0:02:41]} 19. Kh1 {[%clk 0:02:27]}  Bf6 {[%clk 0:02:39]} 20. Ne4 {[%clk 0:02:26]}  Rg8 {[%clk 0:02:38]} 21. Bh5 {[%clk 0:02:23]}  Ng5 {[%clk 0:02:36]} 22. Nxf6 {[%clk 0:02:22]}  Qxf6 {[%clk 0:02:35]} 23. Qe2 {[%clk 0:02:15]}  Rg7 {[%clk 0:02:35]} 24. Be3 {[%clk 0:02:12]}  Rag8 {[%clk 0:02:32]} 25. Bg1 {[%clk 0:01:31]}  Nh3 {[%clk 0:02:30]} 26. Qf3 {[%clk 0:01:04]}  Nxg1 {[%clk 0:02:12]} 27. Rxg1 {[%clk 0:01:04]}  Qxf5 {[%clk 0:02:10]} 28. Qe2 {[%clk 0:00:51]}  b5 {[%clk 0:01:58]} 29. Rxg7 {[%clk 0:00:47]}  Rxg7 {[%clk 0:01:56]} 30. Rf1 {[%clk 0:00:47]}  Qg5 {[%clk 0:01:49]} 31. b3 {[%clk 0:00:21]}  Nc7 {[%clk 0:01:41]} 32. Qf2 {[%clk 0:00:15]}  Bh3 {[%clk 0:01:28]} 33. Qf8+ {[%clk 0:00:12]}  Rg8 {[%clk 0:01:24]} 34. Qf6+ {[%clk 0:00:05]}  Qxf6 {[%clk 0:01:24]} 35. Rxf6 {[%clk 0:00:05]}  Bg2+ {[%clk 0:01:25]} 36. Kg1 {[%clk 0:00:05]}  Bf3+ {[%clk 0:01:21]} 37. Kf2 {[%clk 0:00:05]}  Bxh5 {[%clk 0:01:22]} 38. Rxd6 {[%clk 0:00:06]}  bxc4 {[%clk 0:01:21]} 39. bxc4 {[%clk 0:00:06]}  Rf8+ {[%clk 0:01:20]} 40. Ke3 {[%clk 0:00:05]}  Rf3+ {[%clk 0:01:17]} 41. Kd2 {[%clk 0:00:06]}  e4 {[%clk 0:01:18]} 42. Ne5 {[%clk 0:00:06]}  e3+ {[%clk 0:01:17]} 43. Kd3 {[%clk 0:00:06]}  Rh3 {[%clk 0:01:15]} 44. Rd8+ {[%clk 0:00:06]}  Ne8 {[%clk 0:01:15]} 45. Rd7 {[%clk 0:00:06]}  e2+ {[%clk 0:01:15]} 46. Kd2 {[%clk 0:00:07]}  e1=Q+ {[%clk 0:01:14]} 47. Kxe1 {[%clk 0:00:06]}  Re3+ {[%clk 0:01:15]} 48. Kf2 {[%clk 0:00:06]}  Rxe5 {[%clk 0:01:16]} 49. Rxa7 {[%clk 0:00:05]}  Nd6 {[%clk 0:01:15]} 50. Rc7 {[%clk 0:00:03]}  Be8 {[%clk 0:01:11]} 0-1


[Site "https://www.chess.com"]

[Event "Titled Tuesday Blitz June 14 Early 2022"]
[White "Vakhlamov, Igor L."]
[Black "Nakamura, Hikaru"]
[WhiteFideId "24126748"]
[BlackFideId "2016192"]
[WhiteElo "2401"]
[BlackElo "2850"]
[Result "0-1"]
[Round "05"]
[TimeControl "180+1"]
[Date "2022.06.14"]
[WhiteClock "0:00:02"]
[BlackClock "0:00:26"]

1. e4 {[%clk 0:03:00]}  g6 {[%clk 0:02:59]} 2. d4 {[%clk 0:03:00]}  Bg7 {[%clk 0:02:53]} 3. Nf3 {[%clk 0:03:00]}  c6 {[%clk 0:02:52]} 4. Nc3 {[%clk 0:02:57]}  d5 {[%clk 0:02:52]} 5. h3 {[%clk 0:02:55]}  dxe4 {[%clk 0:02:52]} 6. Nxe4 {[%clk 0:02:56]}  Nf6 {[%clk 0:02:53]} 7. Bd3 {[%clk 0:02:53]}  Bf5 {[%clk 0:02:52]} 8. Nxf6+ {[%clk 0:02:47]}  Bxf6 {[%clk 0:02:53]} 9. O-O {[%clk 0:02:42]}  Nd7 {[%clk 0:02:48]} 10. Bh6 {[%clk 0:02:36]}  Bxd3 {[%clk 0:02:45]} 11. Qxd3 {[%clk 0:02:35]}  Qa5 {[%clk 0:02:46]} 12. Rfe1 {[%clk 0:02:26]}  O-O-O {[%clk 0:02:44]} 13. Bd2 {[%clk 0:02:19]}  Qf5 {[%clk 0:02:43]} 14. Qb3 {[%clk 0:02:07]}  h5 {[%clk 0:02:39]} 15. Qxf7 {[%clk 0:01:47]}  g5 {[%clk 0:02:39]} 16. Qe6 {[%clk 0:01:45]}  Qxe6 {[%clk 0:02:38]} 17. Rxe6 {[%clk 0:01:44]}  g4 {[%clk 0:02:39]} 18. hxg4 {[%clk 0:01:24]}  hxg4 {[%clk 0:02:38]} 19. Nh2 {[%clk 0:01:22]}  Bxd4 {[%clk 0:02:10]} 20. Be3 {[%clk 0:01:08]}  Bxb2 {[%clk 0:01:56]} 21. Rb1 {[%clk 0:01:07]}  g3 {[%clk 0:01:56]} 22. fxg3 {[%clk 0:01:02]}  Ba3 {[%clk 0:01:55]} 23. Nf3 {[%clk 0:00:47]}  Nb6 {[%clk 0:01:48]} 24. g4 {[%clk 0:00:40]}  Nd5 {[%clk 0:01:41]} 25. Bxa7 {[%clk 0:00:36]}  b6 {[%clk 0:01:40]} 26. Rxc6+ {[%clk 0:00:19]}  Kb7 {[%clk 0:01:34]} 27. Rcxb6+ {[%clk 0:00:18]}  Kxa7 {[%clk 0:01:27]} 28. R6b5 {[%clk 0:00:17]}  Rh6 {[%clk 0:01:11]} 29. Nd4 {[%clk 0:00:15]}  Ra6 {[%clk 0:00:59]} 30. R1b3 {[%clk 0:00:07]}  Bc1 {[%clk 0:00:56]} 31. Kf2 {[%clk 0:00:02]}  Nf6 {[%clk 0:00:47]} 32. Rb7+ {[%clk 0:00:01]}  Ka8 {[%clk 0:00:47]} 33. Ne6 {[%clk 0:00:02]}  Rxe6 {[%clk 0:00:47]} 34. R7b4 {[%clk 0:00:02]}  Ra6 {[%clk 0:00:46]} 35. Ke2 {[%clk 0:00:01]}  Bg5 {[%clk 0:00:41]} 36. Rb5 {[%clk 0:00:01]}  Rg8 {[%clk 0:00:41]} 37. Re5 {[%clk 0:00:01]}  Nxg4 {[%clk 0:00:40]} 38. Re4 {[%clk 0:00:01]}  Bf6 {[%clk 0:00:37]} 39. Rbb4 {[%clk 0:00:01]}  Ne5 {[%clk 0:00:35]} 40. g4 {[%clk 0:00:01]}  Rxa2 {[%clk 0:00:33]} 41. Rb5 {[%clk 0:00:01]}  Rxg4 {[%clk 0:00:27]} 42. Re3 {[%clk 0:00:01]}  Rxc2+ {[%clk 0:00:25]} 43. Kd1 {[%clk 0:00:01]}  Ra2 {[%clk 0:00:26]} 44. Rc3 {[%clk 0:00:02]}  Rg1# {[%clk 0:00:26]} 0-1


[Site "https://www.chess.com"]

[Event "Titled Tuesday Blitz June 14 Early 2022"]
[White "Xiong, Jeffery"]
[Black "Bachmann, Axel"]
[WhiteFideId "2047640"]
[BlackFideId "3700488"]
[WhiteElo "2714"]
[BlackElo "2587"]
[Result "1-0"]
[Round "05"]
[TimeControl "180+1"]
[Date "2022.06.14"]
[WhiteClock "0:00:18"]
[BlackClock "0:00:04"]

1. d4 {[%clk 0:02:59]}  d5 {[%clk 0:02:54]} 2. Nf3 {[%clk 0:02:58]}  c6 {[%clk 0:02:51]} 3. c4 {[%clk 0:02:56]}  e6 {[%clk 0:02:50]} 4. Bg5 {[%clk 0:02:54]}  Be7 {[%clk 0:02:49]} 5. Bxe7 {[%clk 0:02:54]}  Qxe7 {[%clk 0:02:50]} 6. Nbd2 {[%clk 0:02:54]}  Nf6 {[%clk 0:02:49]} 7. g3 {[%clk 0:02:54]}  O-O {[%clk 0:02:43]} 8. Bg2 {[%clk 0:02:55]}  Nbd7 {[%clk 0:02:43]} 9. O-O {[%clk 0:02:55]}  b6 {[%clk 0:02:35]} 10. Rc1 {[%clk 0:02:53]}  Bb7 {[%clk 0:02:34]} 11. Qb3 {[%clk 0:02:44]}  c5 {[%clk 0:02:25]} 12. Qa3 {[%clk 0:02:42]}  Rfe8 {[%clk 0:02:18]} 13. cxd5 {[%clk 0:02:42]}  Bxd5 {[%clk 0:02:06]} 14. Rfd1 {[%clk 0:02:42]}  a5 {[%clk 0:01:58]} 15. Nb1 {[%clk 0:02:08]}  cxd4 {[%clk 0:01:42]} 16. Qxe7 {[%clk 0:02:09]}  Rxe7 {[%clk 0:01:43]} 17. Nxd4 {[%clk 0:02:10]}  Bxg2 {[%clk 0:01:42]} 18. Kxg2 {[%clk 0:02:10]}  Nc5 {[%clk 0:01:40]} 19. Na3 {[%clk 0:02:06]}  Rd7 {[%clk 0:01:25]} 20. Nc4 {[%clk 0:02:05]}  Nd5 {[%clk 0:00:51]} 21. Nxb6 {[%clk 0:01:39]}  Nxb6 {[%clk 0:00:51]} 22. Rxc5 {[%clk 0:01:39]}  a4 {[%clk 0:00:43]} 23. e3 {[%clk 0:01:31]}  h6 {[%clk 0:00:41]} 24. Rdc1 {[%clk 0:01:31]}  g5 {[%clk 0:00:34]} 25. h4 {[%clk 0:01:12]}  gxh4 {[%clk 0:00:33]} 26. gxh4 {[%clk 0:01:13]}  Nd5 {[%clk 0:00:33]} 27. Kf3 {[%clk 0:01:13]}  Rb7 {[%clk 0:00:29]} 28. b3 {[%clk 0:01:13]}  axb3 {[%clk 0:00:30]} 29. axb3 {[%clk 0:01:14]}  Kf8 {[%clk 0:00:18]} 30. Rg1 {[%clk 0:00:58]}  Nf6 {[%clk 0:00:17]} 31. Rgc1 {[%clk 0:00:55]}  Rab8 {[%clk 0:00:14]} 32. Rc8+ {[%clk 0:00:50]}  Rxc8 {[%clk 0:00:14]} 33. Rxc8+ {[%clk 0:00:51]}  Kg7 {[%clk 0:00:14]} 34. Rc5 {[%clk 0:00:46]}  Nd5 {[%clk 0:00:13]} 35. Rb5 {[%clk 0:00:45]}  Ra7 {[%clk 0:00:12]} 36. Nf5+ {[%clk 0:00:44]}  Kg6 {[%clk 0:00:10]} 37. Ng3 {[%clk 0:00:43]}  Ra2 {[%clk 0:00:09]} 38. Ne4 {[%clk 0:00:41]}  Rb2 {[%clk 0:00:08]} 39. Rb7 {[%clk 0:00:41]}  Nf6 {[%clk 0:00:07]} 40. Nd6 {[%clk 0:00:39]}  h5 {[%clk 0:00:06]} 41. Rxf7 {[%clk 0:00:26]}  Ng4 {[%clk 0:00:06]} 42. Kg3 {[%clk 0:00:23]}  Rxb3 {[%clk 0:00:03]} 43. Re7 {[%clk 0:00:21]}  Kf6 {[%clk 0:00:03]} 44. Re8 {[%clk 0:00:20]}  Rd3 {[%clk 0:00:03]} 45. Ne4+ {[%clk 0:00:20]}  Kf7 {[%clk 0:00:03]} 46. Rh8 {[%clk 0:00:21]}  Kg6 {[%clk 0:00:03]} 47. Ng5 {[%clk 0:00:21]}  Nf6 {[%clk 0:00:03]} 48. Nxe6 {[%clk 0:00:20]}  Ne4+ {[%clk 0:00:02]} 49. Kf3 {[%clk 0:00:20]}  Nd2+ {[%clk 0:00:02]} 50. Ke2 {[%clk 0:00:20]}  Rd6 {[%clk 0:00:03]} 51. Nf4+ {[%clk 0:00:21]}  Kf5 {[%clk 0:00:03]} 52. Rxh5+ {[%clk 0:00:21]}  Kg4 {[%clk 0:00:04]} 53. Rh8 {[%clk 0:00:17]}  Ne4 {[%clk 0:00:04]} 54. f3+ {[%clk 0:00:18]} 1-0


[Site "https://www.chess.com"]

[Event "Titled Tuesday Blitz June 14 Early 2022"]
[White "Aditya Mittal"]
[Black "Williams, Simon K"]
[WhiteFideId "35042025"]
[BlackFideId "404454"]
[WhiteElo "2303"]
[BlackElo "2468"]
[Result "1-0"]
[Round "06"]
[TimeControl "180+1"]
[Date "2022.06.14"]
[WhiteClock "0:00:03"]
[BlackClock "0:00:02"]

1. d4 {[%clk 0:03:00]}  e6 {[%clk 0:02:56]} 2. c4 {[%clk 0:03:00]}  f5 {[%clk 0:02:55]} 3. Nf3 {[%clk 0:03:00]}  Nf6 {[%clk 0:02:56]} 4. g3 {[%clk 0:03:00]}  Be7 {[%clk 0:02:55]} 5. Bg2 {[%clk 0:03:01]}  O-O {[%clk 0:02:55]} 6. O-O {[%clk 0:03:02]}  d6 {[%clk 0:02:56]} 7. b3 {[%clk 0:03:01]}  Ne4 {[%clk 0:02:54]} 8. Bb2 {[%clk 0:03:00]}  Bf6 {[%clk 0:02:54]} 9. Nbd2 {[%clk 0:02:56]}  Nc6 {[%clk 0:02:54]} 10. a3 {[%clk 0:02:50]}  Nxd2 {[%clk 0:02:53]} 11. Qxd2 {[%clk 0:02:50]}  e5 {[%clk 0:02:53]} 12. Rfd1 {[%clk 0:02:07]}  Qe7 {[%clk 0:02:46]} 13. d5 {[%clk 0:02:06]}  Nd8 {[%clk 0:02:46]} 14. b4 {[%clk 0:02:02]}  Nf7 {[%clk 0:02:45]} 15. Rac1 {[%clk 0:01:58]}  Bd7 {[%clk 0:02:25]} 16. c5 {[%clk 0:01:57]}  Ba4 {[%clk 0:02:24]} 17. Re1 {[%clk 0:01:57]}  g5 {[%clk 0:02:23]} 18. h3 {[%clk 0:01:39]}  h5 {[%clk 0:02:16]} 19. e3 {[%clk 0:01:22]}  g4 {[%clk 0:02:12]} 20. Nh2 {[%clk 0:01:19]}  e4 {[%clk 0:02:07]} 21. Bxf6 {[%clk 0:01:01]}  Qxf6 {[%clk 0:02:07]} 22. cxd6 {[%clk 0:00:46]}  cxd6 {[%clk 0:02:01]} 23. Rc7 {[%clk 0:00:44]}  Rfc8 {[%clk 0:01:37]} 24. Rxb7 {[%clk 0:00:33]}  Rc2 {[%clk 0:01:36]} 25. Qd4 {[%clk 0:00:34]}  Qxd4 {[%clk 0:01:33]} 26. exd4 {[%clk 0:00:35]}  Rac8 {[%clk 0:00:55]} 27. Nf1 {[%clk 0:00:29]}  Rc1 {[%clk 0:00:53]} 28. Rxc1 {[%clk 0:00:29]}  Rxc1 {[%clk 0:00:53]} 29. h4 {[%clk 0:00:29]}  a6 {[%clk 0:00:51]} 30. Kh2 {[%clk 0:00:28]}  Rc2 {[%clk 0:00:51]} 31. Kg1 {[%clk 0:00:23]}  Rc1 {[%clk 0:00:41]} 32. Kh2 {[%clk 0:00:23]}  Rc2 {[%clk 0:00:39]} 33. Ne3 {[%clk 0:00:24]}  Rxf2 {[%clk 0:00:39]} 34. Kg1 {[%clk 0:00:25]}  Re2 {[%clk 0:00:20]} 35. Nxf5 {[%clk 0:00:25]}  Bb5 {[%clk 0:00:18]} 36. Re7 {[%clk 0:00:20]}  Bd3 {[%clk 0:00:16]} 37. a4 {[%clk 0:00:15]}  Rb2 {[%clk 0:00:16]} 38. Bxe4 {[%clk 0:00:14]}  Bxe4 {[%clk 0:00:16]} 39. Rxe4 {[%clk 0:00:15]}  Rxb4 {[%clk 0:00:16]} 40. Re6 {[%clk 0:00:10]}  Rxa4 {[%clk 0:00:17]} 41. Kf2 {[%clk 0:00:08]}  a5 {[%clk 0:00:16]} 42. Ke3 {[%clk 0:00:08]}  Ra3+ {[%clk 0:00:16]} 43. Ke4 {[%clk 0:00:08]}  a4 {[%clk 0:00:13]} 44. Nxd6 {[%clk 0:00:05]}  Nxd6+ {[%clk 0:00:12]} 45. Rxd6 {[%clk 0:00:05]}  Rxg3 {[%clk 0:00:12]} 46. Kf5 {[%clk 0:00:06]}  Kf7 {[%clk 0:00:12]} 47. Rd7+ {[%clk 0:00:06]}  Ke8 {[%clk 0:00:12]} 48. Ra7 {[%clk 0:00:07]}  a3 {[%clk 0:00:12]} 49. d6 {[%clk 0:00:07]}  Re3 {[%clk 0:00:12]} 50. Kf4 {[%clk 0:00:04]}  Rd3 {[%clk 0:00:12]} 51. Ke5 {[%clk 0:00:04]}  Re3+ {[%clk 0:00:12]} 52. Kf4 {[%clk 0:00:03]}  Rd3 {[%clk 0:00:11]} 53. Ke5 {[%clk 0:00:04]}  Rb3 {[%clk 0:00:10]} 54. d5 {[%clk 0:00:03]}  g3 {[%clk 0:00:10]} 55. d7+ {[%clk 0:00:01]}  Kd8 {[%clk 0:00:10]} 56. Ke6 {[%clk 0:00:01]}  Rb8 {[%clk 0:00:02]} 57. Rxa3 {[%clk 0:00:01]}  g2 {[%clk 0:00:02]} 58. Rg3 {[%clk 0:00:02]}  Kc7 {[%clk 0:00:03]} 59. Rxg2 {[%clk 0:00:02]}  Rb6+ {[%clk 0:00:02]} 60. Ke5 {[%clk 0:00:02]}  Kxd7 {[%clk 0:00:02]} 61. Rg5 {[%clk 0:00:03]} 1-0


[Site "https://www.chess.com"]

[Event "Titled Tuesday Blitz June 14 Early 2022"]
[White "Andreikin, Dmitry"]
[Black "Priyanka Nutakki"]
[WhiteFideId "4158814"]
[BlackFideId "25049615"]
[WhiteElo "2736"]
[BlackElo "1912"]
[Result "1-0"]
[Round "06"]
[TimeControl "180+1"]
[Date "2022.06.14"]
[WhiteClock "0:01:06"]
[BlackClock "0:00:04"]

1. e4 {[%clk 0:03:00]}  e6 {[%clk 0:03:00]} 2. d4 {[%clk 0:03:00]}  d5 {[%clk 0:03:00]} 3. Nc3 {[%clk 0:03:01]}  Nf6 {[%clk 0:02:59]} 4. e5 {[%clk 0:03:01]}  Nfd7 {[%clk 0:03:00]} 5. f4 {[%clk 0:03:01]}  c5 {[%clk 0:03:00]} 6. Nf3 {[%clk 0:03:02]}  Nc6 {[%clk 0:03:01]} 7. Be3 {[%clk 0:03:02]}  Be7 {[%clk 0:03:01]} 8. Qd2 {[%clk 0:03:01]}  O-O {[%clk 0:03:02]} 9. Be2 {[%clk 0:03:01]}  b6 {[%clk 0:03:03]} 10. O-O {[%clk 0:03:01]}  f5 {[%clk 0:03:03]} 11. exf6 {[%clk 0:02:59]}  Nxf6 {[%clk 0:03:02]} 12. Rad1 {[%clk 0:02:58]}  c4 {[%clk 0:02:44]} 13. Ne5 {[%clk 0:02:54]}  Bb7 {[%clk 0:02:42]} 14. a3 {[%clk 0:02:53]}  a6 {[%clk 0:02:40]} 15. Qe1 {[%clk 0:02:45]}  b5 {[%clk 0:02:39]} 16. Qg3 {[%clk 0:02:45]}  b4 {[%clk 0:02:35]} 17. axb4 {[%clk 0:02:43]}  Bxb4 {[%clk 0:02:35]} 18. Qh3 {[%clk 0:02:42]}  Qe7 {[%clk 0:02:33]} 19. Na4 {[%clk 0:02:36]}  Rae8 {[%clk 0:02:18]} 20. b3 {[%clk 0:02:28]}  cxb3 {[%clk 0:02:14]} 21. cxb3 {[%clk 0:02:29]}  Na5 {[%clk 0:02:11]} 22. Bd3 {[%clk 0:02:24]}  Ne4 {[%clk 0:01:46]} 23. Nc5 {[%clk 0:02:18]}  g6 {[%clk 0:01:09]} 24. Ncd7 {[%clk 0:02:09]}  Nxb3 {[%clk 0:00:49]} 25. Nxf8 {[%clk 0:02:03]}  Rxf8 {[%clk 0:00:50]} 26. Qh6 {[%clk 0:01:43]}  a5 {[%clk 0:00:43]} 27. Rb1 {[%clk 0:01:26]}  Nbd2 {[%clk 0:00:38]} 28. Bxd2 {[%clk 0:01:25]}  Bxd2 {[%clk 0:00:31]} 29. Nxg6 {[%clk 0:01:22]}  Be3+ {[%clk 0:00:24]} 30. Kh1 {[%clk 0:01:22]}  hxg6 {[%clk 0:00:21]} 31. Qxg6+ {[%clk 0:01:23]}  Kh8 {[%clk 0:00:21]} 32. Bxe4 {[%clk 0:01:10]}  dxe4 {[%clk 0:00:21]} 33. Rb3 {[%clk 0:01:10]}  Rf6 {[%clk 0:00:04]} 34. Qh5+ {[%clk 0:01:06]} 1-0


[Site "https://www.chess.com"]

[Event "Titled Tuesday Blitz June 14 Early 2022"]
[White "Bachmann, Axel"]
[Black "Terry, Renato"]
[WhiteFideId "3700488"]
[BlackFideId "3803457"]
[WhiteElo "2587"]
[BlackElo "2577"]
[Result "0-1"]
[Round "06"]
[TimeControl "180+1"]
[Date "2022.06.14"]
[WhiteClock "0:00:03"]
[BlackClock "0:00:50"]

1. c4 {[%clk 0:02:53]}  b6 {[%clk 0:02:58]} 2. Nc3 {[%clk 0:02:47]}  Bb7 {[%clk 0:02:59]} 3. d4 {[%clk 0:02:47]}  e6 {[%clk 0:02:59]} 4. a3 {[%clk 0:02:47]}  Nf6 {[%clk 0:02:57]} 5. Nf3 {[%clk 0:02:40]}  g6 {[%clk 0:02:56]} 6. Bg5 {[%clk 0:02:34]}  h6 {[%clk 0:02:56]} 7. Bd2 {[%clk 0:02:32]}  Bg7 {[%clk 0:02:56]} 8. Qc2 {[%clk 0:02:32]}  d6 {[%clk 0:02:44]} 9. e4 {[%clk 0:02:30]}  Nbd7 {[%clk 0:02:39]} 10. Bd3 {[%clk 0:02:23]}  e5 {[%clk 0:02:39]} 11. d5 {[%clk 0:02:19]}  a5 {[%clk 0:02:38]} 12. Na4 {[%clk 0:01:59]}  O-O {[%clk 0:02:35]} 13. b4 {[%clk 0:01:55]}  Nh5 {[%clk 0:02:35]} 14. bxa5 {[%clk 0:01:53]}  Nf4 {[%clk 0:02:34]} 15. O-O {[%clk 0:01:47]}  f5 {[%clk 0:02:29]} 16. Bxf4 {[%clk 0:01:31]}  exf4 {[%clk 0:02:30]} 17. Rae1 {[%clk 0:01:24]}  Rxa5 {[%clk 0:02:16]} 18. exf5 {[%clk 0:01:23]}  g5 {[%clk 0:02:10]} 19. Re6 {[%clk 0:01:19]}  g4 {[%clk 0:02:10]} 20. Nd2 {[%clk 0:01:09]}  Ne5 {[%clk 0:02:11]} 21. Nc3 {[%clk 0:01:00]}  Rxa3 {[%clk 0:02:05]} 22. Ndb1 {[%clk 0:00:54]}  Ra1 {[%clk 0:01:59]} 23. Qe2 {[%clk 0:00:46]}  Bc8 {[%clk 0:01:48]} 24. Qe4 {[%clk 0:00:29]}  Bxe6 {[%clk 0:01:06]} 25. fxe6 {[%clk 0:00:28]}  Nxd3 {[%clk 0:01:06]} 26. Qxd3 {[%clk 0:00:29]}  Qg5 {[%clk 0:01:01]} 27. Ne4 {[%clk 0:00:25]}  Qf5 {[%clk 0:00:56]} 28. Nbd2 {[%clk 0:00:24]}  Rxf1+ {[%clk 0:00:54]} 29. Kxf1 {[%clk 0:00:20]}  f3 {[%clk 0:00:54]} 30. g3 {[%clk 0:00:13]}  Ra8 {[%clk 0:00:53]} 31. Kg1 {[%clk 0:00:02]}  Ra1+ {[%clk 0:00:51]} 32. Nf1 {[%clk 0:00:02]}  Re1 {[%clk 0:00:52]} 33. e7 {[%clk 0:00:03]}  Qxe4 {[%clk 0:00:50]} 0-1


[Site "https://www.chess.com"]